lending/lending_fUSD_20240130
["ID","MTS","AMOUNT","RATE_DAILY","PERIOD"]
[312999802,1706579438980,-193.16,0.000452,5]
[312999803,1706579438993,-193.16,0.000452,5]
[312999804,1706579439002,-193.16,0.000452,5]
[312999805,1706579439011,-193.16,0.000452,5]
[312999806,1706579439021,-193.16,0.000452,5]
[312999807,1706579439031,-193.16,0.000452,5]
[312999808,1706579439040,-193.16,0.000452,5]
[312999809,1706579439051,-193.16,0.000452,5]
[312999810,1706579439060,-193.16,0.000452,5]
[312999811,1706579439070,-193.16,0.000452,5]
[312999812,1706579439080,-193.16,0.000452,5]
[312999813,1706579439089,-193.16,0.000452,5]
[312999814,1706579439099,-193.16,0.000452,5]
[312999815,1706579439109,-193.16,0.000452,5]
[312999816,1706579439118,-193.16,0.000452,5]
[312999817,1706579439128,-193.16,0.000452,5]
[312999818,1706579439137,-193.16,0.000452,5]
[312999819,1706579439147,-688.07369491,0.0004529,5]
[312999820,1706579439156,-150.0,0.00045422,2]
[312999821,1706579439166,-173.0,0.0004549,2]
[312999822,1706579439175,-210.0,0.00045548,10]
[312999823,1706579439184,-6405.32376128,0.00045581,2]
[312999824,1706579439193,-688.07369491,0.00045848,5]
[312999825,1706579439202,-154.31668114,0.00045936,12]
[312999826,1706579439212,-350.0,0.00046,38]
[312999827,1706579439225,-173.0,0.0004609,2]
[312999828,1706579439236,-1889.0,0.000461,7]
[312999829,1706579439245,-6405.32376128,0.00046142,2]
[312999830,1706579439254,-330.45,0.00046255,2]
[312999831,1706579439263,-152.61271863,0.00046301,7]
[312999832,1706579439273,-282.8516771,0.00046301,7]
[312999833,1706579439282,-7999.99,0.00046406,30]
[312999834,1706579439291,-688.07369491,0.00046406,5]
[312999835,1706579439301,-150.0,0.00046503,2]
[312999836,1706579439310,-1000.0,0.00046626,30]
[312999837,1706579439319,-200.0,0.00046689,10]
[312999838,1706579439329,-173.0,0.0004669,2]
[312999839,1706579439339,-151.013,0.00046698,51]
[312999840,1706579439348,-6405.32376128,0.00046703,2]
[312999841,1706579439358,-151.013,0.00046798,51]
[312999842,1706579439368,-1000.0,0.000468,2]
[312999843,1706579439378,-210.0,0.00046862,10]
[312999844,1706579439387,-151.013,0.00046898,51]
[312999845,1706579439397,-688.07369491,0.00046963,5]
[312999846,1706579439407,-151.013,0.00046998,51]
[312999847,1706579439416,-300.0,0.00047,39]
[312999848,1706579439426,-502.97775756,0.00047,5]
[312999849,1706579439436,-1500.0,0.00047,30]
[312999850,1706579439445,-151.013,0.00047098,52]
[312999851,1706579439455,-151.013,0.00047198,52]
[312999852,1706579439465,-1000.0,0.000472,7]
[312999853,1706579439474,-6405.32376128,0.00047264,2]
[312999854,1706579439484,-151.013,0.00047298,52]
[312999855,1706579439495,-680.84028131,0.00047364,30]
[312999856,1706579439505,-151.013,0.00047398,52]
[312999857,1706579439514,-1236.93911752,0.00047398,23]
[312999858,1706579439524,-21782.9364091,0.0004749,11]
[312999861,1706579440266,-291.52575678,0.0004749,11]
[312999864,1706579443562,-800.62571115,0.00041428,3]
[312999866,1706579443574,-694.42889422,0.00041428,3]
[312999867,1706579443587,-155.0,0.00047489,2]
[312999868,1706579443597,-416.45992545,0.00047489,4]
[312999869,1706579443607,-18.56705908,0.00047489,4]
[312999870,1706579443619,-2257.06679189,0.00047489,4]
[312999871,1706579443629,-1382.79720811,0.0004749,11]
[312999872,1706579443640,-1122.78861053,0.0004749,11]
[312999873,1706579443652,-4978.16417335,0.0004749,11]
[312999874,1706579443664,-19592.61757028,0.0004749,11]
[312999875,1706579443702,-479.682,0.0004749,11]
[312999877,1706579443781,-4818.55855776,0.0004749,11]
[312999878,1706579443793,-26341.34116849,0.0004749,11]
[312999879,1706579443803,-151.013,0.00047498,53]
[312999880,1706579443812,-6076.53,0.000475,10]
[312999881,1706579443822,-800.0,0.00047504,10]
[312999882,1706579443832,-1974.19553701,0.00047517,4]
[312999883,1706579443860,-877.58877365,0.00047517,4]
[312999884,1706579443872,-538.00652505,0.00047517,4]
[312999885,1706579443883,-1811.72807151,0.00047517,4]
[312999886,1706579443898,-894.59883525,0.00047517,4]
[312999887,1706579443909,-256.81548211,0.00047517,4]
[312999888,1706579443927,-6050.07360414,0.00047517,4]
[312999889,1706579443937,-151.87707358,0.0004752,2]
[312999890,1706579443947,-197.57731,0.0004752,37]
[312999891,1706579443957,-688.07369491,0.00047521,5]
[312999892,1706579443967,-532.9,0.00047572,15]
[312999893,1706579443977,-150.0,0.00047585,2]
[312999894,1706579443987,-151.013,0.00047598,53]
[312999895,1706579443999,-800.0,0.00047612,10]
[312999896,1706579444009,-287.0,0.00047673,7]
[312999897,1706579444020,-295.0,0.0004769,2]
[312999898,1706579444030,-151.013,0.00047698,53]
[312999899,1706579444040,-1000.0,0.00047757,2]
[312999900,1706579444050,-1000.0,0.00047757,2]
[312999901,1706579444060,-1000.0,0.00047757,2]
[312999902,1706579444069,-172.515,0.00047757,2]
[312999903,1706579444079,-500.0,0.00047757,2]
[312999904,1706579444088,-500.0,0.00047757,2]
[312999905,1706579444097,-500.0,0.00047757,2]
[312999906,1706579444107,-500.0,0.00047757,2]
[312999907,1706579444117,-500.0,0.00047757,2]
[312999908,1706579444126,-500.0,0.00047757,2]
[312999909,1706579444135,-500.0,0.00047757,2]
[312999910,1706579444144,-500.0,0.00047757,2]
[312999912,1706579444154,-500.0,0.00047757,2]
[312999913,1706579444163,-500.0,0.00047757,2]
[312999915,1706579444173,-500.0,0.00047757,2]
[312999916,1706579444183,-500.0,0.00047757,2]
[312999917,1706579444192,-500.0,0.00047757,2]
[312999918,1706579444201,-500.0,0.00047757,2]
[312999919,1706579444211,-500.0,0.00047757,2]
[312999920,1706579444220,-500.0,0.00047757,2]
[312999921,1706579444230,-500.0,0.00047757,2]
[312999923,1706579444242,-500.0,0.00047757,2]
[312999924,1706579444252,-500.0,0.00047757,2]
[312999925,1706579444261,-500.0,0.00047757,2]
[312999926,1706579444271,-500.0,0.00047757,2]
[312999927,1706579444280,-500.0,0.00047757,2]
[312999928,1706579444296,-183.0688,0.00047757,2]
[312999929,1706579444310,-1236.93911743,0.00047762,23]
[312999930,1706579444320,-2006.34210492,0.00047779,30]
[312999931,1706579444332,-514.75435641,0.00047779,2]
[312999932,1706579444342,-1000.0,0.00047779,10]
[312999933,1706579444351,-3469.85790196,0.0004779,2]
[312999934,1706579444364,-6983.14209804,0.0004779,2]
[312999935,1706579444374,-151.13457567,0.0004779,29]
[312999936,1706579444384,-2797.0,0.0004779,2]
[312999937,1706579444393,-151.013,0.00047798,53]
[312999938,1706579444403,-1016.38,0.000478,6]
[312999939,1706579444413,-1512.0,0.000478,30]
[312999940,1706579444422,-153.03154583,0.000478,36]
[312999941,1706579444432,-6405.32376128,0.00047825,2]
[312999942,1706579444442,-80790.4114544,0.0004789,11]
[312999943,1706579444452,-753.0,0.0004789,2]
[312999944,1706579444461,-440.0,0.0004789,2]
[312999945,1706579444471,-2683.69891328,0.00047895,2]
[312999946,1706579444481,-171.28479762,0.00047898,4]
[312999947,1706579444493,-351.96512214,0.00047898,5]
[312999948,1706579444503,-151.013,0.00047898,53]
[312999949,1706579444513,-39701.62175314,0.000479,2]
[312999950,1706579444525,-751.19862428,0.000479,2]
[312999951,1706579444551,-1343.21708968,0.000479,2]
[312999952,1706579444563,-837.32375878,0.000479,2]
[312999953,1706579444575,-264.48078886,0.000479,2]
[312999954,1706579444615,-713.38117008,0.00047489,30]
[312999955,1706579444624,-33137.55592823,0.000479,2]
[312999956,1706579444638,-323.66281797,0.000479,2]
[312999957,1706579444650,-931.13278959,0.000479,2]
[312999958,1706579444663,-844.56366426,0.000479,2]
[312999959,1706579444697,-1020.45879802,0.000479,2]
[312999960,1706579444709,-20844.78398719,0.000479,2]
[312999961,1706579444719,-5000.0,0.000479,7]
[312999962,1706579444728,-782.67150627,0.000479,2]
[312999963,1706579444737,-154.31668114,0.00047924,13]
[312999964,1706579444749,-80790.4114544,0.0004798,11]
[312999965,1706579444758,-305.71271462,0.00047987,2]
[312999966,1706579444767,-150.96150691,0.00047989,120]
[312999967,1706579444776,-43952.0132284,0.0004799,11]
[312999968,1706579444789,-4638.0,0.0004799,11]
[312999969,1706579444804,-69937.49280488,0.0004799,11]
[312999970,1706579444815,-6044.41047548,0.0004799,11]
[312999971,1706579444827,-4085.5789353,0.0004799,11]
[312999972,1706579444838,-16913.3,0.0004799,11]
[312999973,1706579444850,-49992.75053871,0.0004799,11]
[312999974,1706579444861,-727.84599298,0.0004799,11]
[312999976,1706579449151,-1124.59550089,0.000385,7]
[312999978,1706579449163,-978.84687834,0.000385,7]
[312999980,1706579449175,-460.24623928,0.000385,7]
[312999982,1706579449213,-845.34622352,0.000385,7]
[312999983,1706579449336,-500.0,0.00031,2]
[312999984,1706579449346,-1087.45047078,0.000385,7]
[312999985,1706579449355,-323.08721046,0.00042811,2]
[312999986,1706579449364,-197.66231876,0.00042811,4]
[312999987,1706579449376,-889.40995652,0.00042811,4]
[312999988,1706579449386,-1495.05460537,0.00042812,5]
[312999989,1706579449395,-180.59186097,0.00047489,2]
[312999990,1706579449404,-5563.65389665,0.00047489,4]
[312999991,1706579449416,-14821.47906016,0.00047489,4]
[312999992,1706579449427,-874.86681029,0.00047489,4]
[312999993,1706579449438,-824.46786287,0.00047489,4]
[312999994,1706579449447,-155.0,0.00047489,2]
[312999995,1706579449457,-890.81,0.0004798,10]
[312999996,1706579449466,-126870.25384225,0.0004799,11]
[312999997,1706579449476,-151.0,0.0004799,14]
[312999998,1706579449491,-13198.0,0.0004799,2]
[312999999,1706579449501,-3366.0,0.0004799,2]
[313000000,1706579449509,-151.0,0.0004799,14]
[313000001,1706579449519,-151.0,0.0004799,14]
[313000002,1706579449528,-151.0,0.0004799,14]
[313000003,1706579449538,-175.671615,0.0004799,14]
[313000004,1706579449548,-215.11315026,0.00047995,30]
[313000005,1706579449558,-1607.95245111,0.00047995,4]
[313000006,1706579449567,-150.01,0.00047996,2]
[313000007,1706579449577,-3305.32624244,0.00047996,2]
[313000008,1706579449586,-209.97037424,0.00047997,30]
[313000009,1706579449596,-155.71115562,0.00047998,4]
[313000010,1706579449605,-1381.22348366,0.00047998,4]
[313000011,1706579449614,-499.99,0.00047998,2]
[313000012,1706579449623,-151.013,0.00047998,53]
[313000013,1706579449633,-358.91200013,0.00047999,60]
[313000014,1706579449645,-100000.59048602,0.00048,14]
[313000015,1706579449663,-42002.42162512,0.00048,14]
[313000016,1706579449675,-255.10379202,0.00048,14]
[313000017,1706579449690,-521.08361,0.00048,14]
[313000018,1706579449885,-401.08,0.00048,14]
[313000019,1706579449902,-756.24104773,0.00048,14]
[313000020,1706579470054,2700.0,0.00023,2]
[313000021,1706579470093,1000000.0,0.00023,2]
[313000023,1706579531095,159.91567417,0.00022,2]
[313000024,1706579547333,-419.0798,0.000229,2]
[313000025,1706579547355,-580.9202,0.00022997,2]
[313000029,1706579856748,941.78,0.00022315,2]
[313000030,1706580107686,150.0,0.00022,2]
[313000031,1706580116350,176.73,0.00022,2]
[313000032,1706580133546,500.0,0.00022,2]
[313000033,1706580136610,161.15,0.00022592,10]
[313000034,1706580136838,161.15,0.00024806,10]
[313000035,1706580159044,1638.72656851,0.00021829,2]
[313000036,1706580162108,456.92338008,0.0002068,5]
[313000037,1706580174152,800.0,0.00022413,2]
[313000038,1706580176263,250.0,0.00022413,2]
[313000039,1706580184493,184.26,0.00021989,2]
[313000040,1706580237642,5293.97,0.00021871,2]
[313000041,1706580247191,3044.96,0.00021842,2]
[313000042,1706580268179,250.0,0.00022,2]
[313000043,1706580269438,250.0,0.00022274,2]
[313000044,1706580277207,894.69,0.00019883,2]
[313000045,1706580277397,894.69,0.00022147,2]
[313000046,1706580304687,177.23,0.00022356,2]
[313000047,1706580344979,200.0,0.00021811,2]
[313000048,1706580347116,2000.0,0.00021811,2]
[313000049,1706580372085,1384.62,0.00021811,2]
[313000050,1706580374803,23900.0,0.00021811,2]
[313000051,1706580442173,150.0,0.00022,2]
[313000052,1706580449416,150.0,0.00022,2]
[313000053,1706580455906,1208.64,0.00021987,2]
[313000054,1706580459675,150.0,0.00022,2]
[313000055,1706580475522,250.0,0.00021802,2]
[313000056,1706580536948,200.0,0.00021811,2]
[313000057,1706580542707,10000.0,0.00021918,2]
[313000058,1706580556676,1852.42,0.00021812,2]
[313000060,1706580584481,1434.06,0.00021812,2]
[313000061,1706580585441,500.0,0.00021809,2]
[313000062,1706580587716,500.0,0.00021809,2]
[313000063,1706580595871,2624.082115,0.0003,100]
[313000065,1706580604028,554.28,0.00021987,2]
[313000066,1706580606733,360.0,0.00021807,2]
[313000074,1706580631800,-306.29925579,0.00022545,2]
[313000075,1706580631810,-150.0,0.00022546,2]
[313000076,1706580631819,-150.0,0.00022546,2]
[313000077,1706580631828,-7803.03250074,0.00022547,2]
[313000078,1706580631838,-176.73,0.00022548,2]
[313000079,1706580631848,-500.0,0.00022548,2]
[313000080,1706580631857,-250.0,0.00022548,2]
[313000081,1706580631866,-150.0,0.00022548,2]
[313000082,1706580631875,-150.0,0.00022548,2]
[313000083,1706580631884,-289.51363546,0.00022568,2]
[313000084,1706580631893,-235.1,0.00022581,2]
[313000085,1706580631902,-289.51363537,0.00022585,2]
[313000086,1706580631912,-289.51363537,0.00022603,2]
[313000087,1706580631921,-289.51363537,0.0002262,2]
[313000088,1706580631930,-289.51363537,0.00022638,2]
[313000089,1706580631939,-235.1,0.00022643,2]
[313000090,1706580631949,-289.51363537,0.00022655,2]
[313000091,1706580631958,-170.69644732,0.00022666,2]
[313000092,1706580631967,-4000.0,0.00022668,2]
[313000093,1706580631977,-289.51363537,0.00022673,2]
[313000094,1706580631986,-289.51363537,0.0002269,2]
[313000095,1706580631996,-235.1,0.00022705,2]
[313000096,1706580632007,-289.51363537,0.00022708,2]
[313000097,1706580632016,-289.51363537,0.00022725,2]
[313000098,1706580632026,-289.51363537,0.00022743,2]
[313000099,1706580632037,-289.51363537,0.0002276,2]
[313000100,1706580632046,-235.1,0.00022767,2]
[313000101,1706580632056,-289.51363537,0.00022778,2]
[313000102,1706580632066,-289.51363537,0.00022795,2]
[313000103,1706580632077,-289.51363537,0.00022813,2]
[313000105,1706580632086,-250.0,0.00022822,2]
[313000107,1706580632095,-235.1,0.00022829,2]
[313000109,1706580632105,-289.51363537,0.0002283,2]
[313000110,1706580632114,-289.51363537,0.00022848,2]
[313000111,1706580632125,-289.51363537,0.00022865,2]
[313000112,1706580632135,-5509.9877,0.0002288,2]
[313000114,1706580632147,-12706.4296,0.0002288,2]
[313000116,1706580632158,-289.51363537,0.00022883,2]
[313000118,1706580632168,-235.1,0.00022891,2]
[313000120,1706580632177,-261.72775073,0.00022898,2]
[313000122,1706580632186,-994.0856503,0.000229,2]
[313000124,1706580632195,-289.51363537,0.000229,2]
[313000126,1706580632204,-1052.29577419,0.000229,2]
[313000128,1706580632213,-216.03065593,0.000229,2]
[313000129,1706580632222,-212.85535984,0.000229,2]
[313000130,1706580632231,-160.96427464,0.000229,2]
[313000131,1706580632240,-152.29527513,0.000229,2]
[313000132,1706580632249,-1434.06,0.00022903,2]
[313000133,1706580632259,-948.90989711,0.00022915,6]
[313000134,1706580632268,-235.1,0.00022953,2]
[313000135,1706580632276,-3028.58,0.00022956,2]
[313000136,1706580632286,-208.81075331,0.00022978,2]
[313000137,1706580632296,-257914.19480284,0.0002298,2]
[313000138,1706580632305,-211.99822346,0.0002299,2]
[313000139,1706580632316,-155.90413993,0.00022998,2]
[313000140,1706580632325,-4984.85650329,0.00022998,2]
[313000141,1706580632335,-1048.46092301,0.00022998,2]
[313000142,1706580632344,-499.99,0.00022998,2]
[313000143,1706580632354,-54061.35386972,0.00022999,2]
[313000144,1706580632363,-500.0,0.00022999,2]
[313000145,1706580632372,-500.0,0.00022999,2]
[313000146,1706580632381,-500.0,0.00022999,2]
[313000147,1706580632390,-500.0,0.00022999,2]
[313000148,1706580632399,-639.09824726,0.00022999,2]
[313000149,1706580632409,-500.0,0.00022999,2]
[313000150,1706580632418,-355.50361314,0.00022999,2]
[313000151,1706580632427,-500.0,0.00022999,2]
[313000152,1706580632435,-548.2875231,0.00022999,2]
[313000153,1706580632444,-500.0,0.00022999,2]
[313000154,1706580632453,-607.33639543,0.00022999,2]
[313000155,1706580632462,-500.0,0.00022999,2]
[313000156,1706580632471,-500.0,0.00022999,2]
[313000157,1706580632480,-471.70237125,0.00022999,2]
[313000158,1706580632490,-500.0,0.00022999,2]
[313000159,1706580632499,-500.0,0.00022999,2]
[313000160,1706580632509,-588.10506231,0.00022999,2]
[313000161,1706580632518,-500.0,0.00022999,2]
[313000162,1706580632527,-500.0,0.00022999,2]
[313000163,1706580632536,-500.0,0.00022999,2]
[313000164,1706580632545,-500.0,0.00022999,2]
[313000165,1706580632553,-500.0,0.00022999,2]
[313000166,1706580632562,-500.0,0.00022999,2]
[313000167,1706580632571,-500.0,0.00022999,2]
[313000168,1706580632580,-500.0,0.00022999,2]
[313000169,1706580632589,-500.0,0.00022999,2]
[313000170,1706580632598,-500.0,0.00022999,2]
[313000171,1706580632607,-500.0,0.00022999,2]
[313000172,1706580632616,-500.0,0.00022999,2]
[313000173,1706580632624,-500.0,0.00022999,2]
[313000174,1706580632633,-500.0,0.00022999,2]
[313000175,1706580632642,-500.0,0.00022999,2]
[313000176,1706580632651,-500.0,0.00022999,2]
[313000177,1706580632660,-500.0,0.00022999,2]
[313000178,1706580632669,-500.0,0.00022999,2]
[313000179,1706580632678,-500.0,0.00022999,2]
[313000180,1706580632687,-500.0,0.00022999,2]
[313000181,1706580632696,-500.0,0.00022999,2]
[313000182,1706580632706,-500.0,0.00022999,2]
[313000183,1706580632714,-500.0,0.00022999,2]
[313000184,1706580632724,-500.0,0.00022999,2]
[313000185,1706580632733,-500.0,0.00022999,2]
[313000186,1706580632742,-500.0,0.00022999,2]
[313000187,1706580632752,-500.0,0.00022999,2]
[313000188,1706580632760,-500.0,0.00022999,2]
[313000189,1706580632769,-500.0,0.00022999,2]
[313000190,1706580632778,-500.0,0.00022999,2]
[313000191,1706580632788,-500.0,0.00022999,2]
[313000192,1706580632797,-500.0,0.00022999,2]
[313000193,1706580632806,-500.0,0.00022999,2]
[313000194,1706580632815,-500.0,0.00022999,2]
[313000195,1706580632824,-500.0,0.00022999,2]
[313000196,1706580632833,-500.0,0.00022999,2]
[313000197,1706580632842,-500.0,0.00022999,2]
[313000198,1706580632851,-500.0,0.00022999,2]
[313000199,1706580632861,-500.0,0.00022999,2]
[313000200,1706580632870,-500.0,0.00022999,2]
[313000201,1706580632879,-500.0,0.00022999,2]
[313000202,1706580632888,-500.0,0.00022999,2]
[313000203,1706580632897,-500.0,0.00022999,2]
[313000204,1706580632907,-500.0,0.00022999,2]
[313000205,1706580632916,-500.0,0.00022999,2]
[313000206,1706580632925,-500.0,0.00022999,2]
[313000207,1706580632939,-500.0,0.00022999,2]
[313000208,1706580632948,-500.0,0.00022999,2]
[313000209,1706580632957,-500.0,0.00022999,2]
[313000210,1706580632966,-599.66967938,0.00022999,2]
[313000211,1706580632976,-500.0,0.00022999,2]
[313000212,1706580632985,-500.0,0.00022999,2]
[313000213,1706580632994,-500.0,0.00022999,2]
[313000214,1706580633003,-500.0,0.00022999,2]
[313000215,1706580633195,-500.0,0.00022999,2]
[313000216,1706580633204,-500.0,0.00022999,2]
[313000217,1706580633214,-500.0,0.00022999,2]
[313000218,1706580633226,-500.0,0.00022999,2]
[313000219,1706580633236,-500.0,0.00022999,2]
[313000220,1706580633247,-500.0,0.00022999,2]
[313000221,1706580633258,-500.0,0.00022999,2]
[313000222,1706580633267,-500.0,0.00022999,2]
[313000223,1706580633276,-500.0,0.00022999,2]
[313000224,1706580633288,-559.52656103,0.00022999,2]
[313000225,1706580633298,-500.0,0.00022999,2]
[313000226,1706580633312,-500.0,0.00022999,2]
[313000227,1706580633324,-500.0,0.00022999,2]
[313000228,1706580633335,-500.0,0.00022999,2]
[313000229,1706580633347,-500.0,0.00022999,2]
[313000230,1706580633357,-500.0,0.00022999,2]
[313000231,1706580633367,-202.1396689,0.00022999,2]
[313000232,1706580633377,-500.0,0.00022999,2]
[313000233,1706580633387,-500.0,0.00022999,2]
[313000234,1706580633397,-500.0,0.00022999,2]
[313000235,1706580633406,-500.0,0.00022999,2]
[313000236,1706580633415,-989.4590902,0.00022999,2]
[313000237,1706580633424,-989.4590902,0.00022999,2]
[313000238,1706580633435,-500.0,0.00022999,2]
[313000239,1706580633445,-989.4590902,0.00022999,2]
[313000240,1706580633456,-500.0,0.00022999,2]
[313000241,1706580633465,-500.0,0.00022999,2]
[313000242,1706580633475,-989.4590902,0.00022999,2]
[313000243,1706580633485,-989.4590902,0.00022999,2]
[313000244,1706580633494,-989.4590902,0.00022999,2]
[313000245,1706580633503,-500.0,0.00022999,2]
[313000246,1706580633514,-989.4590902,0.00022999,2]
[313000247,1706580633523,-350.28494042,0.00022999,2]
[313000248,1706580633532,-500.0,0.00022999,2]
[313000249,1706580633541,-989.4590902,0.00022999,2]
[313000250,1706580633550,-500.0,0.00022999,2]
[313000251,1706580633558,-989.4590902,0.00022999,2]
[313000252,1706580633570,-500.0,0.00022999,2]
[313000253,1706580633579,-989.4590902,0.00022999,2]
[313000254,1706580633588,-989.4590902,0.00022999,2]
[313000255,1706580633597,-500.0,0.00022999,2]
[313000256,1706580633606,-500.0,0.00022999,2]
[313000257,1706580633616,-989.4590902,0.00022999,2]
[313000258,1706580633625,-989.4590902,0.00022999,2]
[313000259,1706580633634,-989.4590902,0.00022999,2]
[313000260,1706580633643,-989.4590902,0.00022999,2]
[313000261,1706580633652,-500.0,0.00022999,2]
[313000262,1706580633661,-989.4590902,0.00022999,2]
[313000263,1706580633670,-989.4590902,0.00022999,2]
[313000264,1706580633679,-989.4590902,0.00022999,2]
[313000265,1706580633688,-989.4590902,0.00022999,2]
[313000266,1706580633697,-989.4590902,0.00022999,2]
[313000267,1706580633706,-500.0,0.00022999,2]
[313000268,1706580633716,-989.4590902,0.00022999,2]
[313000269,1706580633725,-989.4590902,0.00022999,2]
[313000270,1706580633735,-989.4590902,0.00022999,2]
[313000271,1706580633744,-989.4590902,0.00022999,2]
[313000272,1706580633753,-989.4590902,0.00022999,2]
[313000273,1706580633764,-989.4590902,0.00022999,2]
[313000274,1706580633774,-989.4590902,0.00022999,2]
[313000275,1706580633783,-989.4590902,0.00022999,2]
[313000276,1706580633792,-989.4590902,0.00022999,2]
[313000277,1706580633801,-989.45909017,0.00022999,2]
[313000278,1706580633810,-989.45909017,0.00022999,2]
[313000279,1706580633820,-989.45909016,0.00022999,2]
[313000280,1706580633829,-142368.38049289,0.00023,2]
[313000281,1706580633867,-1191.11904289,0.00023,2]
[313000282,1706580633907,-492.18609625,0.00023,2]
[313000283,1706580633921,-491.67029575,0.00023,2]
[313000284,1706580633933,-10660.70475743,0.00023,2]
[313000285,1706580633946,-4220.6,0.00023,2]
[313000286,1706580633966,-4676.4933487,0.00023,2]
[313000287,1706580633978,-6459.22465432,0.00023,2]
[313000294,1706580637775,-25067.6090917,0.00023,2]
[313000299,1706580637944,-3169.733,0.00023,2]
[313000300,1706580638056,-2273621.21253356,0.00023,2]
[313000301,1706580638066,-1110.00045718,0.00023,2]
[313000302,1706580638075,-244.40073402,0.00023,2]
[313000303,1706580638085,-1409623.90419397,0.00023,2]
[313000304,1706580638095,-235.1,0.00023015,2]
[313000305,1706580638105,-235.1,0.00023077,2]
[313000306,1706580638114,-176.73,0.00023096,2]
[313000307,1706580638123,-500.0,0.00023096,2]
[313000308,1706580638132,-250.0,0.00023096,2]
[313000309,1706580638142,-150.0,0.00023096,2]
[313000310,1706580638151,-150.0,0.00023096,2]
[313000311,1706580638161,-662.35542123,0.0002313,2]
[313000313,1706580638170,-235.1,0.00023138,2]
[313000315,1706580638180,-235.1,0.000232,2]
[313000317,1706580638189,-235.1,0.00023262,2]
[313000318,1706580638198,-235.1,0.00023324,2]
[313000319,1706580638207,-281.85,0.00023348,2]
[313000320,1706580638216,-150.0,0.0002337,2]
[313000321,1706580638225,-250.0,0.0002337,2]
[313000322,1706580638234,-235.1,0.00023386,2]
[313000323,1706580638243,-235.1,0.00023448,2]
[313000324,1706580638252,-235.1,0.0002351,2]
[313000325,1706580638262,-5293.97,0.00023515,2]
[313000326,1706580638271,-235.1,0.00023572,2]
[313000327,1706580638280,-235.1,0.00023634,2]
[313000328,1706580638289,-176.73,0.00023644,2]
[313000329,1706580638299,-500.0,0.00023644,2]
[313000330,1706580638311,-305.4682038,0.00023644,2]
[313000331,1706580638322,-290.71684368,0.00023644,2]
[313000332,1706580638332,-150.0,0.00023644,2]
[313000333,1706580638341,-235.1,0.00023696,2]
[313000334,1706580638350,-235.1,0.00023758,2]
[313000335,1706580638360,-171.17,0.0002395,2]
[313000336,1706580638369,-1434.06,0.00023993,2]
[313000337,1706580638379,-202.3451815,0.00024,2]
[313000338,1706580638390,-155.34771185,0.000241,2]
[313000339,1706580638400,-176.73,0.00024192,2]
[313000340,1706580638409,-500.0,0.00024192,2]
[313000341,1706580638419,-150.0,0.00024192,2]
[313000342,1706580638428,-151.38096458,0.000243,2]
[313000343,1706580638438,-152.29527503,0.00024343,2]
[313000344,1706580638447,-1599.0,0.00024384,2]
[313000345,1706580638457,-1961.38,0.00024384,2]
[313000346,1706580638467,-894.69,0.00024411,2]
[313000347,1706580638477,-150.0,0.00024425,2]
[313000348,1706580638487,-150.0,0.00024425,2]
[313000349,1706580638498,-150.0,0.00024425,2]
[313000350,1706580638507,-150.0,0.00024425,2]
[313000351,1706580638518,-360.0,0.00024533,2]